Cogmind - Beta 11.1 @@@ ROGUE MODE // 2022.08.24 @ 16:26:00 Player: Benkyo Result: Destroyed by G-47 Trooper with Particle Gun Performance ------------- Evolutions (0) 0 Regions Visited (4) 800 Robots Destroyed (35) 175 Value Destroyed (924) 924 Prototype IDs (5) 100 Alien Tech Used (0) 0 Bonus (0) 0 TOTAL SCORE: 1999 Bonus ------- None Cogmind --------- Core Integrity 0/250 Matter 203/300 Energy 160/160 System Corruption 0% Temperature Cool (9) Movement Treading (320) Ox2 Location -9/Mines Parts ------- > --- POWER (1) -------- Light Nuclear Core > --- PROPULSION (2) --- Light Treads Wheel > --- UTILITY (2) ------ High-capacity Storage Unit Core Shielding > --- WEAPON (2) ------- Assault Rifle Assault Rifle > --- INVENTORY (20) --- Aluminum Leg Aluminum Leg Compact Wheel Heat Sink Improved Heat Sink Huge Storage Unit Structural Scanner Visual Processing Unit Improved Terrain Scanner Improved Targeting Computer Weapon Shielding Weapon Shielding Tractor Beam Particle Gun Grenade Launcher Rocket Launcher Ripper Peak State ------------ > --- POWER ------------ Light Nuclear Core > --- PROPULSION ------- Wheel Wheel > --- UTILITY ---------- High-capacity Storage Unit Weapon Shielding > --- WEAPON ----------- Assault Rifle Assault Rifle > --- INVENTORY -------- Light Nuclear Core Aluminum Leg Aluminum Leg Compact Wheel Heat Sink Improved Heat Sink Huge Storage Unit Structural Scanner Visual Processing Unit Improved Terrain Scanner Improved Targeting Computer Core Shielding Weapon Shielding Weapon Shielding Tractor Beam Particle Gun Grenade Launcher Rocket Launcher Ripper [Rating: 12] Favorites ----------- Power Ion Engine Engine Ion Engine Power Core Light Nuclear Core Propulsion Light Treads Treads Light Treads Leg Aluminum Leg Wheel Wheel Utility Weapon Shielding Device Improved Terrain Scanner Storage High-capacity Storage Unit Protection Weapon Shielding Weapon Assault Rifle Ballistic Gun Assault Rifle Launcher Grenade Launcher Build | -11 -10 -10 -10 -9 ------- Run | Scr Mat Min Exi Min Slots Evolved . | . . . . . Power . | . . . . . Propulsion . | . . . . . Utility . | . . . . . Weapon . | . . . . . Parts Attached 26 | 7 4 1 . 14 Power 3 | 1 . . . 2 Engine 1 | 1 . . . . Core 2 | . . . . 2 Reactor . | . . . . . Propulsion 7 | 2 . 1 . 4 Treads 4 | 2 . 1 . 1 Leg 1 | . . . . 1 Wheel 2 | . . . . 2 Hover . | . . . . . Flight . | . . . . . Utility 9 | 2 4 . . 3 Device 1 | 1 . . . . Storage 3 | 1 2 . . . Processor . | . . . . . Hackware . | . . . . . Protection 5 | . 2 . . 3 Artifact . | . . . . . Weapon 7 | 2 . . . 5 Energy Gun . | . . . . . Energy Cannon . | . . . . . Ballistic Gun 5 | 2 . . . 3 Ballistic Cannon . | . . . . . Launcher 2 | . . . . 2 Special Weapon . | . . . . . Impact Weapon . | . . . . . Slashing Weapon . | . . . . . Piercing Weapon . | . . . . . Special Melee Weapon . | . . . . . Unidentified Prototypes . | . . . . . Parts Lost 9 | . . . . 9 Power 2 | . . . . 2 Propulsion 3 | . . . . 3 Utility 2 | . . . . 2 Weapon 2 | . . . . 2 Highest Loss Streak 5 | . . . . 5 To Critical Strikes . | . . . . . Average Slot Usage (%) 99 | . 100 100 100 96 Engine 13 | . 14 14 14 11 Treads 26 | . 28 28 28 8 Wheel 1 | . . . . 16 Storage 14 | . 14 14 14 14 Protection 13 | . 13 14 14 14 Ballistic Gun 27 | . 28 28 28 26 Naked Turns . | . . . . . Heaviest Build 50 | 15 50 50 50 50 Greatest Support 40 | 40 40 40 40 40 Greatest Overweight (x) 4 | 3 1 1 1 4 Average Overweight (x) . | 1 . 1 1 2 Largest Inventory Capacity 20 | 8 20 20 20 20 Average Capacity 18 | 5 15 20 20 20 Most Carried 20 | 5 20 20 20 20 Average Carried 16 | 4 11 19 20 19 Final Capacity 20 | 8 20 20 20 20 Final Carried 20 | 4 20 20 20 17 Class Distribution -------------------- 100% | Mutant Dominant Class ---------------- Mutant | -10/Materials Mutant | -10/Mines Mutant | -10/Exiles Mutant | -9/Mines Resources | -11 -10 -10 -10 -9 ----------- Run | Scr Mat Min Exi Min Matter Collected 859 | 242 316 62 . 239 Remotely . | . . . . . Salvage Created 1133 | 20 648 93 . 372 Parts 76 | 4 45 6 . 21 Haulers Intercepted . | . . . . . Recyclers Shooed 1 | . . . . 1 Parts Field Recycled . | . . . . . Retrieved Matter . | . . . . . Parts Self-Destructed . | . . . . . Prevented . | . . . . . Kills | -11 -10 -10 -10 -9 ------- Run | Scr Mat Min Exi Min Combat Hostiles Destroyed 29 | . 16 2 . 11 Guns 23 | . 16 2 . 5 AOE 6 | . . . . 6 Classes Destroyed 8 | 1 3 . . 4 Worker 1 | . . . . 1 Tunneler 1 | 1 . . . . Recycler 2 | . . . . 2 Watcher 2 | . 2 . . . Swarmer 7 | . 3 . . 4 Grunt 20 | . 13 2 . 5 Brawler 1 | . . . . 1 Duelist 1 | . . . . 1 Best Kill Streak 7 | 1 3 2 . 7 Combat Bots Only 7 | . 3 2 . 7 Max Kills in Single Turn 3 | 1 1 1 . 3 Gunslinging . | . . . . . Exploded 3 | . . . . 3 Melee . | . . . . . Uniques/NPCs Destroyed . | . . . . . Combat | -11 -10 -10 -10 -9 -------- Run | Scr Mat Min Exi Min Damage Taken 1443 | . 430 133 . 880 Core 253 | . 76 21 . 156 Absorbed by Shields . | . . . . . Redirected to Shielding 155 | . 47 20 . 88 Core Remaining (%) 100 | 100 . . . . Volleys Fired 82 | 1 42 7 . 32 Largest 2 | 2 2 2 . 2 Hottest 50 | 40 40 40 . 50 Shots Fired 157 | 2 84 14 . 57 Gun 147 | 2 84 14 . 47 Cannon . | . . . . . Launcher 10 | . . . . 10 Special . | . . . . . Kinetic 147 | 2 84 14 . 47 Thermal . | . . . . . Explosive 10 | . . . . 10 Electromagnetic . | . . . . . Robot Hit Streak 14 | 1 14 4 . 11 Robot Miss Streak 6 | . 2 6 . 3 Penetration Max . | . . . . . Secondary Targets 2 | . . 1 . 1 Max Gunslinging Chain 1 | . . 1 . 1 Shots Hit Robots 108 | 1 59 8 . 40 Core Hits 60 | 1 31 5 . 23 Critical Kills 1 | . . . . 1 Critical Parts Destroyed . | . . . . . Critical Strikes 1 | . . . . 1 Destroy 1 | . . . . 1 Melee Attacks . | . . . . . Impact . | . . . . . Slashing . | . . . . . Piercing . | . . . . . Sneak Attacks . | . . . . . Combat Hostiles . | . . . . . Follow-up Attacks . | . . . . . Damage Inflicted 1846 | 13 764 106 . 963 Guns 1273 | 13 764 106 . 390 Cannons . | . . . . . Explosions 573 | . . . . 573 Melee . | . . . . . Ramming . | . . . . . Kinetic 1273 | 13 764 106 . 390 Thermal . | . . . . . Explosive 573 | . . . . 573 Electromagnetic . | . . . . . Impact . | . . . . . Slashing . | . . . . . Piercing . | . . . . . Highest Corruption . | . . . . . Average Corruption . | . . . . . Corruption Purged . | . . . . . Corruption Blocked . | . . . . . Overload Shots . | . . . . . Overflow Damage 34 | . . . . 34 Projectiles . | . . . . . Explosions 34 | . . . . 34 Melee . | . . . . . Knockbacks . | . . . . . Impact . | . . . . . Kinetic . | . . . . . Secondary . | . . . . . Self-Inflicted Damage 304 | . . . . 304 Shots 9 | . . . . 9 Rammed . | . . . . . Targets Rammed . | . . . . . Kicked . | . . . . . Crushed . | . . . . . Highest Temperature 5 | . 5 3 . 4 Average Temperature 2 | . 2 2 . 2 Received Heat Transfer 456 | . 213 75 . 168 Siege Activations . | . . . . . Robots Corrupted . | . . . . . Combat Hostiles . | . . . . . Parts Fried . | . . . . . Impact Corruptions . | . . . . . Robots Melted . | . . . . . Combat Hostiles . | . . . . . Parts Melted . | . . . . . Heat Transferred . | . . . . . Parts Sabotaged . | . . . . . Parts Stolen . | . . . . . Parts Stripped . | . . . . . Power Chain Reactions . | . . . . . Missiles Intercepted . | . . . . . Alert | -11 -10 -10 -10 -9 ------- Run | Scr Mat Min Exi Min Peak Influence 309 | 5 198 74 . 309 Initial 24 | . 3 24 . . Average 47 | 2 76 14 . 114 Maximum Alert Level 1 | . . . . 1 Low Security (%) 97 | 100 100 100 . 73 Level 1 2 | . . . . 26 Level 2 . | . . . . . Level 3 . | . . . . . Level 4 . | . . . . . Level 5 . | . . . . . High Security . | . . . . . Max Security . | . . . . . Squads Dispatched 5 | . 5 . . . Investigation 2 | . 2 . . . Extermination . | . . . . . Reinforcement 3 | . 3 . . . Assault . | . . . . . Garrison . | . . . . . Intercept . | . . . . . Searches Triggered . | . . . . . Construction Impeded . | . . . . . Haulers Reinforced . | . . . . . Active Scanning Responses . | . . . . . Cargo Convoy Interrupts . | . . . . . Stealth | -11 -10 -10 -10 -9 --------- Run | Scr Mat Min Exi Min Distress Signals 3 | . 3 . . . Communications Jammed . | . . . . . Distress Signals . | . . . . . Times Spotted 38 | . 23 2 . 13 Peak Tracking Total 5 | . 3 2 . 5 Tactical Retreats 1 | . 1 . . . Traps | -11 -10 -10 -10 -9 ------- Run | Scr Mat Min Exi Min Traps Triggered . | . . . . . Indirectly . | . . . . . Trap Hack Attempts . | . . . . . Triggered . | . . . . . Disarmed . | . . . . . Reprogrammed . | . . . . . Reused . | . . . . . Traps Extracted . | . . . . . Installed . | . . . . . Triggered . | . . . . . Machines | -11 -10 -10 -10 -9 ---------- Run | Scr Mat Min Exi Min Machines Disabled . | . . . . . Max in Single Turn . | . . . . . Machines Sabotaged . | . . . . . Garrisons Compromised . | . . . . . Overloaded Fab Kills . | . . . . . Hacking | -11 -10 -10 -10 -9 --------- Run | Scr Mat Min Exi Min Machines Accessed 8 | . 7 . 1 . Terminals 5 | . 5 . . . Fabricators . | . . . . . Repair Stations . | . . . . . Recycling Units 2 | . 2 . . . Scanalyzers . | . . . . . Garrison Access . | . . . . . Total Hacks 22 | . 21 . 1 . Successful 15 | . 14 . 1 . Failed 7 | . 7 . . . Catastrophic . | . . . . . Database Lockouts . | . . . . . Manual 7 | . 7 . . . Terminals 16 | . 16 . . . Fabricators . | . . . . . Repair Stations . | . . . . . Recycling Units 5 | . 5 . . . Scanalyzers . | . . . . . Garrison Access . | . . . . . Terminal Hacks 11 | . 10 . 1 . Record 1 | . . . 1 . Robot Analysis 2 | . 2 . . . Prototype ID Bank 3 | . 3 . . . Locate Traps 2 | . 2 . . . Recall Reinforcements 1 | . 1 . . . Hauler Manifests 1 | . 1 . . . Zone Layout 1 | . 1 . . . Fabricator Hacks . | . . . . . Repair Station Hacks . | . . . . . Recycling Unit Hacks 1 | . 1 . . . Retrieve Components 1 | . 1 . . . Scanalyzer . | . . . . . Garrison Access Hacks . | . . . . . Unauthorized Hacks 3 | . 3 . . . Terminals 2 | . 2 . . . Botnet 2 | . 2 . . . Fabricators . | . . . . . Repair Stations . | . . . . . Recycling Units 1 | . 1 . . . Tunnel 1 | . 1 . . . Scanalyzers . | . . . . . Garrison Access . | . . . . . Data Cores Recovered . | . . . . . Used . | . . . . . Hacking Detections 6 | . 6 . . . Full Trace Events 2 | . 2 . . . Feedback Events . | . . . . . Feedback Blocked . | . . . . . Robot Schematics Acquired . | . . . . . Robots Built . | . . . . . Authchips . | . . . . . Time . | . . . . . Total Robot Build Rating . | . . . . . Part Schematics Acquired . | . . . . . Parts Built . | . . . . . Authchips . | . . . . . Time . | . . . . . Total Part Build Rating . | . . . . . Parts Repaired . | . . . . . Time . | . . . . . Parts Recycled . | . . . . . Recycled Matter . | . . . . . Retrieved Matter . | . . . . . Retrieved Components 3 | . 3 . . . Parts Scanalyzed . | . . . . . Part Schematics Acquired . | . . . . . Parts Damaged . | . . . . . Bothacking | -11 -10 -10 -10 -9 ------------ Run | Scr Mat Min Exi Min Used RIF Installer . | . . . . . Robots Hacked . | . . . . . Non-combat . | . . . . . Combat . | . . . . . Robot Hacks Applied . | . . . . . Relay Couplers Released . | . . . . . Fabnet Peak Effective % . | . . . . . Robots Rewired . | . . . . . Allies Hacked . | . . . . . Hacks Repelled . | . . . . . Allies | -11 -10 -10 -10 -9 -------- Run | Scr Mat Min Exi Min Total Allies . | . . . . . Largest Group . | . . . . . Highest-Rated Group . | . . . . . Highest-Rated Ally . | . . . . . Total Orders . | . . . . . Ally Attacks . | . . . . . Total Damage . | . . . . . Kills . | . . . . . Allies Corrupted . | . . . . . Allies Melted . | . . . . . Intel | -11 -10 -10 -10 -9 ------- Run | Scr Mat Min Exi Min Robot Analysis Total 2 | . 2 . . . Derelict Logs Recovered 3 | . . 3 . . Drone Launches . | . . . . . Drone Recoveries . | . . . . . Exploration | -11 -10 -10 -10 -9 ------------- Run | Scr Mat Min Exi Min Turns Passed 3735 | 82 1341 1682 351 279 Spaces Moved 1553 | 47 577 673 147 109 Core 46 | 46 . . . . Treads 1425 | 1 577 673 147 27 Legs . | . . . . . Wheels 82 | . . . . 82 Hover . | . . . . . Flight . | . . . . . Fastest Speed 50 | 50 160 240 240 110 Average Speed 215 | 137 199 240 240 151 Slowest Speed 240 | 200 240 240 240 240 Overloaded Moves . | . . . . . Propulsion Burnouts . | . . . . . Robots Hopped . | . . . . . Cave-ins Triggered . | . . . . . Exploration Rate (%) 56 | 4 99 98 54 27 Regions Visited 4 Branch Regions 3 Pre-discovered Areas 2 | . 1 . 1 . Known Exits Taken . | . . . . . Unknown Exits Taken 4 | 1 1 1 1 . Scrap Searched 2 | . . 1 . 1 Spaces Dug . | . . . . . Terrain Destroyed 42 | . . . . 42 Melee . | . . . . . Projectile . | . . . . . AOE 42 | . . . . 42 Terrain Rammed . | . . . . . Walls Destroyed . | . . . . . Machines Disabled . | . . . . . Actions | -11 -10 -10 -10 -9 --------- Run | Scr Mat Min Exi Min Total 1785 | 60 688 727 146 164 Wait 84 | 1 38 43 . 2 Move 1549 | 46 576 672 146 109 Hop . | . . . . . Pick Up 34 | 5 21 2 . 6 Fast Attach 7 | 6 . . . 1 Attach 9 | 1 . . . 8 Detach . | . . . . . Swap 10 | . 4 1 . 5 Drop 10 | . 7 2 . 1 Fire 82 | 1 42 7 . 32 Melee . | . . . . . Ram . | . . . . . Kick . | . . . . . Crush . | . . . . . Escape Stasis . | . . . . . Rewire . | . . . . . Trap . | . . . . . Miscellaneous . | . . . . . Route ------- -11/Scrapyard -10/Materials (discovered 4 exits: [*Mat x3] / [*Min]) -10/Mines (discovered 3 exits: [*Mat x2] / *Exi) -10/Exiles -9/Mines (discovered 1 exit: [*Mat]) History --------- Turn | Location | Event 22 | -11/Scrapyard | Discovered new exit (range 15) 83 | -11/Scrapyard | Entered Materials 299 | -10/Materials | Discovered new exit (range 4) 312 | -10/Materials | Build established: Mutant 634 | -10/Materials | Discovered new exit (range 12) 1002 | -10/Materials | Discovered new exit (range 16) 1217 | -10/Materials | Discovered new exit (range 10) 1424 | -10/Materials | Entered Mines 1490 | -10/Mines | Met a Derelict bent on vengeance 1546 | -10/Mines | Received a Rocket Launcher from a helpful Derelict 1612 | -10/Mines | A weapon hastily lodged in a ceiling crevice suddenly fell to the ground 1678 | -10/Mines | Discovered new exit (range 15) 1960 | -10/Mines | Learned location of 1 exit from Materials 2267 | -10/Mines | Deemed a non-threat by the Exiles lab entrance 2267 | -10/Mines | Discovered new exit (range 5) 2359 | -10/Mines | Learned Materials terminal intel 2388 | -10/Mines | Discovered new exit (range 3) 2650 | -10/Mines | Learned Materials emergency access door positions 3106 | -10/Mines | Entered Exiles 3164 | -10/Exiles | Met 8R-AWN 3205 | -10/Exiles | Met EX-HEX 3310 | -10/Exiles | Met EX-DEC 3351 | -10/Exiles | Learned location of Zion (-7) 3426 | -10/Exiles | Discovered new exit (range 14) 3457 | -10/Exiles | Entered Mines 3534 | -9/Mines | Core integrity fell below 50% 3568 | -9/Mines | Lost 5 parts (2n1u2w) 3645 | -9/Mines | Discovered new exit (range 7) 3700 | -9/Mines | Destroyed 7 combat bots 3727 | -9/Mines | Core integrity fell below 20% 3736 | -9/Mines | Destroyed by G-47 Trooper with Particle Gun Last Messages --------------- 03690_ U-05 Engineer lays Concrete. 03690_ Acquired 15 matter. 03691_ K-01 Serf collects debris. 03693_ U-05 Engineer builds a Wall. 03693_ U-05 Engineer lays Concrete. 03695_ The unstable cave ceiling collapses. 03695_ K-01 Serf collects debris. 03697_ U-05 Engineer lays Concrete. 03697_ U-05 Engineer builds a Wall. 03697_ Acquired 28 matter. 03697_ K-01 Serf collects debris. 03698_ U-05 Engineer builds a Wall. 03701_ U-05 Engineer lays Concrete. 03702_ U-05 Engineer builds a Wall. 03706_ C-30 ARC bursts open, deploying its payload. 03706_ G-34 Mercenary unfolds itself. 03715_ Lgt. Nuclear Core destroyed. 03719_ G-34 Mercenary destroyed. 03720_ Weapon Shielding destroyed. 03732_ Wheel destroyed. Map ----- +----------------------------------------------------+ | | | | | | | | | | | | | | | | | ???????????????????????????????????????? | | ???????????????????????????????????????? | | ???????????????????????????????????????? | | ???????????????????????????????????????? | | ???????????????????????????????????????? | | ???????????????????????????????????????? | | ???????????????????????????????????????? | | ???????????????????????????????????????? | | ???????????????????????????????????????? | | ???????????????????????????????????????? | | ???????????????????????????????????????? | | ???????????????????????????????????????? | | ??????????????????#????????????????????? | | ????????????????? #????????????????????? | | ?????????????????%?????????????????????? | | ????????????????g#?????????????????????? | | ???????????#####g#????????#####????????? | | ???????????# @=#???##### ##???????? | | ???????????# ####??## #???????? | | ??????????## ####?## * ????????? | | ??????????# #?# %% ?????????? | | ??????????# ### %%* #???????????? | | ??????????# = #???????????? | | ??????????# < ### ##?????????????? | | ??????????# =! #??????????????? | | ??????????# ### #??????????????? | | ??????????############ ##?????????????? | | ???????????# ##????????????? | | ?????????# ##???????????? | | ?????????# ####### #???????????? | | ?????????##????????# #???????????? | | ??????????????????##% ##???????????? | | ??????????????????# """ #????????????? | | ??????????????????# """ #????????????? | | ??#########???????# """ #????????????? | | ??# #???????## #????????????? | | ??# #????????# ##????????????? | | ??# #????????# #?????????????? | | ??# #???????## = ##?????????????? | | ??#""" #????#### #??????????????? | | ??#""" ###### [ #??????????????? | | ??#""" # ## #??????????????? | +----------------------------------------------------+ Best States ------------- Heat Dissipation 25 Energy Generation 14 Energy Capacity 250 Matter Stores 300 Matter Capacity 300 Sight Range 16 Terrain Scan Range 16 Terrain Scan Density 10 Weapon Shielding 33 Evasion (%) 50 Recoil Reduction 2 Item Schematics ----------------- None Robot Schematics ------------------ None Fabricated ------------ Nothing Alien Tech Used ----------------- None Achievements -------------- None Challenges ------------ None Game ------ Seed MicroDynamicField Manual? 0 Play Time 00:26:20 Cumulative 302.4 hours Start 2022.08.24 @ 16:02:42 End 2022.08.24 @ 16:26:00 Sessions 1 Manual Loads 0 Difficulty Rogue Special Mode None Game No. 46 Rogue 39 Adventurer 1 Explorer 6 Win Type - Total 20 Types 5/2/6/1/1/1/2/1/1 Lore% 87 Gallery% 87 Achievement% 70 Wizard Run 0 Options --------- ASCII 0 Keyboard 0 Movement Mouse Keybinds 0 Fullscreen 1 Font 18/SmallcapsGlow Map View 76x50 Tactical HUD 1 Map Filters NONE Filters NONE Steam 1 RUN: 8f96eb6b-77fa-4ba2-ae47-adb3d237f8eb